[Event "Turkish Cup 2024"]
[Site "Denizli"]
[Date "2024.08.01"]
[Round "4"]
[White "Yilmaz, Turhan"]
[Black "Yogurtcuoglu, Cagan"]
[Result "1/2-1/2"]
[ECO "B23"]
[WhiteElo "2015"]
[BlackElo "1713"]
[Annotator "RC"]
[PlyCount "112"]
[EventDate "2024.08.01"]
[EventType "swiss"]
[EventCountry "TUR"]
[SourceTitle "playchess.com"]
[Source "ChessBase"]
[SourceQuality "1"]
[TimeControl "5400+30"]

1. e4 {[%emt 0:01:00]} c5 {[%emt 0:01:00]} 2. Nc3 {[%emt 0:00:30]} Nc6 {[%emt 0:00:00]} 3. d3 {[%emt 0:00:00]} d6 {[%emt 0:01:00]} 4. Be3 {[%emt 0:00:00]} Nf6 {[%emt 0:01:30]} 5. h3 {[%emt 0:00:00]} e6 {[%emt 0:03:30]} 6. Nge2 {[%emt 0:04:00]} Be7 {[%emt 0:00:30]} 7. g4 {[%emt 0:00:30]} d5 {[%emt 0:04:30]} 8. exd5 {[%emt 0:08:30]} Nxd5 {[%emt 0:04:30]} 9. Bd2 {[%emt 0:00:30]} O-O {[%emt 0:01:30]} 10. Bg2 {[%emt 0:00:00]} Qd7 {[%emt 0:06:30]} 11. Nxd5 {[%emt 0:05:00]} exd5 {[%emt 0:00:30]} 12. Nc3 {[%emt 0:00:00]} d4 {[%emt 0:01:30]} 13. Ne4 {[%emt 0:00:00]} f5 {[%emt 0:05:30]} 14. gxf5 {[%emt 0:02:30]} Qxf5 {[%emt 0:00:30]} 15. Qe2 {[%emt 0:00:30]} Be6 {[%emt 0:02:30]} 16. O-O-O {[%emt 0:01:30]} Bd5 {[%emt 0:00:30]} 17. f4 {[%emt 0:03:30]} Rae8 {[%emt 0:00:30]} 18. Rde1 {[%emt 0:06:30]} Bd6 {[%emt 0:06:30]} 19. Qg4 {[%emt 0:01:30]} Bxe4 {[%emt 0:05:30]} 20. Bxe4 {[%emt 0:08:30]} Qf7 {[%emt 0:02:30]} 21. b3 {[%emt 0:14:30]} Bxf4 {[%emt 0:04:30]} 22. Bxf4 {[%emt 0:12:30]} Qxf4+ {[%emt 0:00:00]} 23. Qxf4 {[%emt 0:01:30]} Rxf4 {[%emt 0:00:00]} 24. Bxh7+ {[%emt 0:00:30]} Kf8 {[%emt 0:00:30]} 25. Be4 {[%emt 0:00:30]} Rf6 {[%emt 0:02:30]} 26. h4 {[%emt 0:02:30]} Nd8 {[%emt 0:04:30]} 27. Reg1 {[%emt 0:06:30]} b6 {[%emt 0:01:30]} 28. Rh2 {[%emt 0:00:30]} Re5 {[%emt 0:05:30]} 29. Rg5 {[%emt 0:00:30]} Nf7 {[%emt 0:01:30]} 30. Rg1 {[%emt 0:01:34]} Nd6 {[%emt 0:02:30]} 31. Bg6 {[%emt 0:00:34]} Rfe6 {[%emt 0:06:30]} 32. Rf2+ {[%emt 0:02:27]} Ke7 {[%emt 0:01:30]} 33. Kd2 {[%emt 0:00:23]} Rf6 {[%emt 0:00:30]} 34. Rfg2 {[%emt 0:00:12]} a5 {[%emt 0:01:30]} 35. Bh7 {[%emt 0:00:49]} Ne8 {[%emt 0:00:30]} 36. Bg6 {[%emt 0:01:50]} Nd6 {[%emt 0:00:00]} 37. a4 {[%emt 0:01:05]} Rf4 {[%emt 0:03:00]} 38. h5 {[%emt 0:00:12]} Rf6 {[%emt 0:00:00]} 39. Kc1 {[%emt 0:01:23]} Kd7 {[%emt 0:03:00]} 40. Bh7 {[%emt 0:04:12]} Rxh5 {[%emt 0:04:20]} 41. Rxg7+ {[%emt 0:00:02]} Rf7 {[%emt 0:03:57]} 42. Rxf7+ {[%emt 0:00:36]} Nxf7 {[%emt 0:00:07]} 43. Rg7 {[%emt 0:00:15]} Rh1+ {[%emt 0:02:16]} 44. Kb2 {[%emt 0:01:29]} Rf1 {[%emt 0:00:29]} 45. Be4 {[%emt 0:00:30]} Ke6 {[%emt 0:01:04]} 46. Rg6+ {[%emt 0:00:39]} Rf6 {[%emt 0:01:26]} 47. Bd5+ {[%emt 0:00:36]} Ke7 {[%emt 0:00:23]} 48. Rg7 {[%emt 0:01:04]} Kf8 {[%emt 0:00:33]} 49. Rh7 {[%emt 0:00:18]} Nd6 {[%emt 0:00:45]} 50. Rc7 {[%emt 0:01:28]} Ke8 {[%emt 0:01:17]} 51. Rc6 {[%emt 0:00:58]} Kd7 {[%emt 0:00:07]} 52. Kc1 {[%emt 0:04:41]} Ne8 {[%emt 0:00:54]} 53. Rxf6 {[%emt 0:00:35]} Nxf6 {[%emt 0:00:30]} 54. Ba8 {[%emt 0:00:00]} Ke6 {[%emt 0:00:01]} 55. Kb2 {[%emt 0:00:01]} Ne8 {[%emt 0:02:38]} 56. Bc6 {[%emt 0:00:17]} Nd6 {[%emt 0:00:00]} 1/2-1/2

[Event "Turkish Cup 2024"]
[Site "Denizli"]
[Date "2024.08.01"]
[Round "4"]
[White "Akkara, Omer"]
[Black "Ilgaz, Yusuf Kerem"]
[Result "1/2-1/2"]
[ECO "C47"]
[WhiteElo "1998"]
[BlackElo "2006"]
[Annotator "RC"]
[PlyCount "72"]
[EventDate "2024.08.01"]
[EventType "swiss"]
[EventCountry "TUR"]
[SourceTitle "playchess.com"]
[Source "ChessBase"]
[SourceQuality "1"]
[TimeControl "5400+30"]

1. e4 {[%emt 0:01:00]} e5 {[%emt 0:04:00]} 2. Nf3 {[%emt 0:00:30]} Nc6 {[%emt 0:00:30]} 3. Nc3 {[%emt 0:00:00]} Nf6 {[%emt 0:00:00]} 4. a3 {[%emt 0:00:00]} g6 {[%emt 0:00:00]} 5. d4 {[%emt 0:00:00]} exd4 {[%emt 0:00:00]} 6. Nxd4 {[%emt 0:00:00]} Bg7 {[%emt 0:00:00]} 7. Nde2 {[%emt 0:00:30]} O-O {[%emt 0:00:30]} 8. g3 {[%emt 0:00:00]} d6 {[%emt 0:00:30]} 9. Bg2 {[%emt 0:00:00]} Rb8 {[%emt 0:00:00]} 10. O-O {[%emt 0:00:30]} b5 {[%emt 0:01:00]} 11. h3 {[%emt 0:01:30]} a5 {[%emt 0:01:30]} 12. Be3 {[%emt 0:01:30]} b4 {[%emt 0:09:30]} 13. axb4 {[%emt 0:02:30]} axb4 {[%emt 0:00:30]} 14. Nd5 {[%emt 0:00:00]} Nxd5 {[%emt 0:17:30]} 15. exd5 {[%emt 0:00:00]} Ne7 {[%emt 0:01:30]} 16. Bd4 {[%emt 0:02:30]} Bxd4 {[%emt 0:04:30]} 17. Qxd4 {[%emt 0:07:30]} Nf5 {[%emt 0:00:30]} 18. Qf4 {[%emt 0:00:00]} Re8 {[%emt 0:05:30]} 19. Rfe1 {[%emt 0:01:00]} Bd7 {[%emt 0:03:30]} 20. Nd4 {[%emt 0:02:30]} Rxe1+ {[%emt 0:06:30]} 21. Rxe1 {[%emt 0:00:30]} Qf6 {[%emt 0:01:30]} 22. Nxf5 {[%emt 0:00:00]} Qxf5 {[%emt 0:00:30]} 23. Qxf5 {[%emt 0:01:00]} Bxf5 {[%emt 0:00:00]} 24. Re7 {[%emt 0:01:30]} Rc8 {[%emt 0:13:00]} 25. Re2 {[%emt 0:00:30]} h5 {[%emt 0:03:30]} 26. f3 {[%emt 0:03:30]} g5 {[%emt 0:00:30]} 27. g4 {[%emt 0:02:30]} Bg6 {[%emt 0:00:30]} 28. gxh5 {[%emt 0:00:30]} Bxh5 {[%emt 0:00:00]} 29. Re4 {[%emt 0:00:00]} Rb8 {[%emt 0:02:00]} 30. Rc4 {[%emt 0:02:00]} Rb7 {[%emt 0:01:30]} 31. Kf2 {[%emt 0:00:30]} Bg6 {[%emt 0:00:30]} 32. b3 {[%emt 0:01:30]} Kg7 {[%emt 0:01:30]} 33. Ke3 {[%emt 0:01:30]} Ra7 {[%emt 0:02:30]} 34. f4 {[%emt 0:00:30]} gxf4+ {[%emt 0:05:48]} 35. Kxf4 {[%emt 0:01:30]} Kf6 {[%emt 0:03:04]} 36. Be4 {[%emt 0:00:30]} Rb7 {[%emt 0:00:20]} 1/2-1/2

[Event "Turkish Cup 2024"]
[Site "Denizli"]
[Date "2024.08.01"]
[Round "4"]
[White "Celebi, Mehmet Alper"]
[Black "Celik, Ege Yigit"]
[Result "1/2-1/2"]
[ECO "B31"]
[WhiteElo "1998"]
[BlackElo "1949"]
[Annotator "RC"]
[PlyCount "37"]
[EventDate "2024.08.01"]
[EventType "swiss"]
[EventCountry "TUR"]
[SourceTitle "playchess.com"]
[Source "ChessBase"]
[SourceQuality "1"]
[TimeControl "5400+30"]

1. e4 {[%emt 0:01:00]} c5 {[%emt 0:03:00]} 2. Nc3 {[%emt 0:00:30]} Nc6 {[%emt 0:00:30]} 3. Bb5 {[%emt 0:00:00]} Nf6 {[%emt 0:00:00]} 4. Nf3 {[%emt 0:03:00]} g6 {[%emt 0:00:00]} 5. Bxc6 {[%emt 0:00:30]} bxc6 {[%emt 0:00:30]} 6. d3 {[%emt 0:00:30]} Bg7 {[%emt 0:01:30]} 7. O-O {[%emt 0:00:30]} O-O {[%emt 0:01:30]} 8. Rb1 {[%emt 0:12:30]} d6 {[%emt 0:03:30]} 9. b3 {[%emt 0:01:30]} Bg4 {[%emt 0:02:30]} 10. h3 {[%emt 0:00:30]} Bxf3 {[%emt 0:02:30]} 11. Qxf3 {[%emt 0:00:30]} Nd7 {[%emt 0:00:30]} 12. Bb2 {[%emt 0:00:30]} Qa5 {[%emt 0:00:30]} 13. Nd1 {[%emt 0:00:30]} Bxb2 {[%emt 0:00:30]} 14. Rxb2 {[%emt 0:00:30]} Qa3 {[%emt 0:00:30]} 15. Qe3 {[%emt 0:00:30]} a5 {[%emt 0:38:30]} 16. Rb1 {[%emt 0:27:30]} a4 {[%emt 0:08:30]} 17. Nb2 {[%emt 0:00:30]} axb3 {[%emt 0:02:30]} 18. axb3 {[%emt 0:00:30]} Qb4 {[%emt 0:00:30]} 19. Na4 {[%emt 0:03:30]} 1/2-1/2

[Event "Turkish Cup 2024"]
[Site "Denizli"]
[Date "2024.08.01"]
[Round "4"]
[White "Akbas, Kaan"]
[Black "Zor, Emir Aras"]
[Result "1-0"]
[ECO "D02"]
[WhiteElo "1990"]
[BlackElo "1734"]
[Annotator "RC"]
[PlyCount "59"]
[EventDate "2024.08.01"]
[EventType "swiss"]
[EventCountry "TUR"]
[SourceTitle "playchess.com"]
[Source "ChessBase"]
[SourceQuality "1"]
[TimeControl "5400+30"]

1. Nf3 {[%emt 0:05:00]} d5 {[%emt 0:01:00]} 2. g3 {[%emt 0:00:00]} c5 {[%emt 0:00:30]} 3. Bg2 {[%emt 0:02:00]} Nc6 {[%emt 0:00:30]} 4. d4 {[%emt 0:00:30]} Nf6 {[%emt 0:02:30]} 5. O-O {[%emt 0:01:30]} Bf5 {[%emt 0:02:30]} 6. c4 {[%emt 0:00:30]} e6 {[%emt 0:05:30]} 7. Nc3 {[%emt 0:03:30]} dxc4 {[%emt 0:03:30]} 8. Ne5 {[%emt 0:01:30]} Rc8 {[%emt 0:03:30]} 9. Qa4 {[%emt 0:04:30]} Qb6 {[%emt 0:01:30]} 10. e4 {[%emt 0:07:30]} cxd4 {[%emt 0:06:30]} 11. exf5 {[%emt 0:03:30]} dxc3 {[%emt 0:00:30]} 12. fxe6 {[%emt 0:02:30]} Bc5 {[%emt 0:06:30]} 13. Bxc6+ {[%emt 0:04:30]} bxc6 {[%emt 0:00:30]} 14. exf7+ {[%emt 0:00:30]} Kf8 {[%emt 0:00:30]} 15. bxc3 {[%emt 0:00:30]} Qb5 {[%emt 0:00:30]} 16. Ba3 {[%emt 0:01:30]} g6 {[%emt 0:05:30]} 17. Qxa7 {[%emt 0:01:30]} Bxa3 {[%emt 0:00:30]} 18. Qxa3+ {[%emt 0:00:30]} Kg7 {[%emt 0:00:00]} 19. Rfe1 {[%emt 0:06:30]} Ra8 {[%emt 0:09:00]} 20. Qe7 {[%emt 0:02:30]} Rhf8 {[%emt 0:00:30]} 21. Rab1 {[%emt 0:02:30]} Qa6 {[%emt 0:00:30]} 22. Rb7 {[%emt 0:01:30]} Qxa2 {[%emt 0:01:30]} 23. Nxc6 {[%emt 0:02:30]} Qd2 {[%emt 0:01:30]} 24. Nd4 {[%emt 0:01:30]} Ng4 {[%emt 0:02:30]} 25. Re2 {[%emt 0:01:30]} Qh6 {[%emt 0:00:30]} 26. h4 {[%emt 0:00:30]} Kh8 {[%emt 0:02:30]} 27. Ne6 {[%emt 0:02:30]} Rfc8 {[%emt 0:00:30]} 28. Qd6 {[%emt 0:01:30]} Nf6 {[%emt 0:01:30]} 29. Nd8 {[%emt 0:01:30]} Rxd8 {[%emt 0:00:30]} 30. Qxf6+ {[%emt 0:00:00]} 1-0

[Event "Turkish Cup 2024"]
[Site "Denizli"]
[Date "2024.08.01"]
[Round "4"]
[White "Cakir, Mert"]
[Black "Kocakaplan, Emre"]
[Result "0-1"]
[ECO "C54"]
[WhiteElo "1990"]
[BlackElo "1926"]
[Annotator "RC"]
[PlyCount "138"]
[EventDate "2024.08.01"]
[EventType "swiss"]
[EventCountry "TUR"]
[SourceTitle "playchess.com"]
[Source "ChessBase"]
[SourceQuality "1"]
[TimeControl "5400+30"]

1. e4 {[%emt 0:01:00]} e5 {[%emt 0:01:00]} 2. Nf3 {[%emt 0:00:30]} Nc6 {[%emt 0:00:00]} 3. Bc4 {[%emt 0:00:00]} Bc5 {[%emt 0:00:00]} 4. c3 {[%emt 0:00:00]} Nf6 {[%emt 0:00:30]} 5. d3 {[%emt 0:00:00]} d6 {[%emt 0:00:30]} 6. Nbd2 {[%emt 0:00:00]} a5 {[%emt 0:00:30]} 7. a4 {[%emt 0:00:30]} O-O {[%emt 0:00:30]} 8. O-O {[%emt 0:02:30]} h6 {[%emt 0:01:30]} 9. h3 {[%emt 0:01:30]} Be6 {[%emt 0:03:30]} 10. Bb5 {[%emt 0:00:30]} Qb8 {[%emt 0:02:30]} 11. Re1 {[%emt 0:02:30]} Qa7 {[%emt 0:01:30]} 12. Qe2 {[%emt 0:01:30]} Ne7 {[%emt 0:10:30]} 13. Bc4 {[%emt 0:05:30]} Ng6 {[%emt 0:12:30]} 14. Nf1 {[%emt 0:06:30]} Bxc4 {[%emt 0:08:30]} 15. dxc4 {[%emt 0:00:30]} Rae8 {[%emt 0:00:30]} 16. Ng3 {[%emt 0:02:30]} Nf4 {[%emt 0:01:30]} 17. Qc2 {[%emt 0:01:30]} Re6 {[%emt 0:07:30]} 18. Be3 {[%emt 0:01:30]} Bxe3 {[%emt 0:02:30]} 19. Rxe3 {[%emt 0:01:30]} Nd7 {[%emt 0:02:30]} 20. Ne2 {[%emt 0:06:30]} Qa6 {[%emt 0:05:30]} 21. b3 {[%emt 0:01:30]} Nxe2+ {[%emt 0:02:30]} 22. Qxe2 {[%emt 0:03:30]} Qb6 {[%emt 0:01:30]} 23. Rb1 {[%emt 0:04:30]} Nc5 {[%emt 0:10:30]} 24. Rb2 {[%emt 0:10:30]} Rf6 {[%emt 0:06:07]} 25. Nh4 {[%emt 0:03:30]} Kh7 {[%emt 0:00:20]} 26. Kh2 {[%emt 0:14:30]} Qc6 {[%emt 0:01:00]} 27. Nf5 {[%emt 0:08:30]} Qd7 {[%emt 0:05:05]} 28. Rg3 {[%emt 0:05:03]} Rg8 {[%emt 0:01:09]} 29. f3 {[%emt 0:04:38]} Rxf5 {[%emt 0:06:47]} 30. exf5 {[%emt 0:00:17]} Qxf5 {[%emt 0:00:02]} 31. Qd1 {[%emt 0:04:53]} Qf4 {[%emt 0:01:15]} 32. b4 {[%emt 0:01:01]} axb4 {[%emt 0:01:52]} 33. cxb4 {[%emt 0:00:04]} Ne6 {[%emt 0:01:02]} 34. Qc2+ {[%emt 0:04:14]} g6 {[%emt 0:00:46]} 35. Qe4 {[%emt 0:00:33]} h5 {[%emt 0:01:20]} 36. h4 {[%emt 0:00:49]} f5 {[%emt 0:01:40]} 37. Qd5 {[%emt 0:00:04]} Qxh4+ {[%emt 0:00:37]} 38. Rh3 {[%emt 0:00:05]} Qf6 {[%emt 0:00:31]} 39. Qxb7 {[%emt 0:01:09]} e4 {[%emt 0:01:08]} 40. Ra2 {[%emt 0:01:23]} e3 {[%emt 0:00:31]} 41. a5 {[%emt 0:00:38]} Qe5+ {[%emt 0:00:06]} 42. f4 {[%emt 0:00:57]} Nxf4 {[%emt 0:00:35]} 43. Qf3 {[%emt 0:00:35]} e2 {[%emt 0:00:50]} 44. Rxe2 {[%emt 0:01:30]} Nxe2+ {[%emt 0:00:07]} 45. g3 {[%emt 0:00:00]} Nd4 {[%emt 0:00:29]} 46. Qf2 {[%emt 0:00:52]} Qe4 {[%emt 0:00:14]} 47. g4 {[%emt 0:00:20]} Qe5+ {[%emt 0:00:53]} 48. Kh1 {[%emt 0:00:16]} Re8 {[%emt 0:01:02]} 49. gxh5 {[%emt 0:00:21]} Qe1+ {[%emt 0:00:34]} 50. Qxe1 {[%emt 0:00:30]} Rxe1+ {[%emt 0:00:00]} 51. Kg2 {[%emt 0:00:13]} g5 {[%emt 0:00:00]} 52. Ra3 {[%emt 0:00:22]} Nc2 {[%emt 0:00:26]} 53. Ra4 {[%emt 0:00:39]} Re8 {[%emt 0:00:28]} 54. b5 {[%emt 0:00:39]} f4 {[%emt 0:00:26]} 55. a6 {[%emt 0:00:40]} Nd4 {[%emt 0:00:34]} 56. c5 {[%emt 0:00:52]} Nxb5 {[%emt 0:01:28]} 57. Rb4 {[%emt 0:00:57]} c6 {[%emt 0:00:30]} 58. cxd6 {[%emt 0:00:00]} Nxd6 {[%emt 0:00:06]} 59. Rb6 {[%emt 0:00:00]} Nf5 {[%emt 0:00:57]} 60. Rxc6 {[%emt 0:01:22]} Re2+ {[%emt 0:00:43]} 61. Kh3 {[%emt 0:00:47]} f3 {[%emt 0:00:26]} 62. Rf6 {[%emt 0:00:39]} Ne3 {[%emt 0:00:19]} 63. h6 {[%emt 0:01:07]} g4+ {[%emt 0:00:58]} 64. Kh4 {[%emt 0:00:04]} Ra2 {[%emt 0:00:00]} 65. Kg3 {[%emt 0:00:48]} Rg2+ {[%emt 0:01:06]} 66. Kh4 {[%emt 0:00:06]} Ra2 {[%emt 0:00:18]} 67. Kg3 {[%emt 0:00:04]} Ra3 {[%emt 0:00:33]} 68. Kh4 {[%emt 0:00:52]} Ra5 {[%emt 0:00:52]} 69. Kg3 {[%emt 0:00:15]} Nf5+ {[%emt 0:00:00]} 0-1

[Event "Turkish Cup 2024"]
[Site "Denizli"]
[Date "2024.08.01"]
[Round "4"]
[White "Dargali, Hakan"]
[Black "Torun, Selin"]
[Result "1/2-1/2"]
[ECO "C02"]
[WhiteElo "1973"]
[BlackElo "1843"]
[Annotator "RC"]
[PlyCount "85"]
[EventDate "2024.08.01"]
[EventType "swiss"]
[EventCountry "TUR"]
[SourceTitle "playchess.com"]
[Source "ChessBase"]
[SourceQuality "1"]
[TimeControl "5400+30"]

1. e4 {[%emt 0:03:00]} e6 {[%emt 0:01:00]} 2. d4 {[%emt 0:00:30]} d5 {[%emt 0:00:30]} 3. e5 {[%emt 0:00:00]} c5 {[%emt 0:00:30]} 4. c3 {[%emt 0:00:00]} Nc6 {[%emt 0:00:30]} 5. Nf3 {[%emt 0:00:00]} Nge7 {[%emt 0:00:30]} 6. Na3 {[%emt 0:00:00]} cxd4 {[%emt 0:00:30]} 7. cxd4 {[%emt 0:01:30]} Nf5 {[%emt 0:01:30]} 8. Nc2 {[%emt 0:00:00]} Bd7 {[%emt 0:01:30]} 9. Bd3 {[%emt 0:00:00]} Qb6 {[%emt 0:02:30]} 10. O-O {[%emt 0:00:30]} a5 {[%emt 0:00:30]} 11. Be3 {[%emt 0:04:30]} Be7 {[%emt 0:00:30]} 12. g4 {[%emt 0:02:30]} Nxe3 {[%emt 0:03:30]} 13. fxe3 {[%emt 0:00:30]} f6 {[%emt 0:01:30]} 14. exf6 {[%emt 0:06:30]} gxf6 {[%emt 0:01:30]} 15. g5 {[%emt 0:06:30]} O-O-O {[%emt 0:03:30]} 16. gxf6 {[%emt 0:00:30]} Bxf6 {[%emt 0:00:30]} 17. b4 {[%emt 0:02:30]} a4 {[%emt 0:02:30]} 18. b5 {[%emt 0:01:30]} Ne7 {[%emt 0:02:30]} 19. Qd2 {[%emt 0:08:30]} Ng6 {[%emt 0:03:30]} 20. Nb4 {[%emt 0:02:30]} Kb8 {[%emt 0:06:30]} 21. Nc6+ {[%emt 0:14:30]} Bxc6 {[%emt 0:00:30]} 22. bxc6 {[%emt 0:00:00]} Qxc6 {[%emt 0:00:00]} 23. Rab1 {[%emt 0:03:00]} Qd6 {[%emt 0:03:00]} 24. Qa5 {[%emt 0:01:30]} Rd7 {[%emt 0:01:30]} 25. Rb6 {[%emt 0:00:30]} Qa3 {[%emt 0:03:30]} 26. Qb5 {[%emt 0:01:30]} Rg7 {[%emt 0:03:30]} 27. Kh1 {[%emt 0:13:30]} Bd8 {[%emt 0:06:30]} 28. Ra6 {[%emt 0:08:30]} Rf8 {[%emt 0:02:30]} 29. Bxg6 {[%emt 0:03:56]} hxg6 {[%emt 0:03:30]} 30. Rxe6 {[%emt 0:03:26]} Qxa2 {[%emt 0:04:30]} 31. Re8 {[%emt 0:09:03]} Rgf7 {[%emt 0:01:30]} 32. Rxf8 {[%emt 0:01:02]} Rxf8 {[%emt 0:00:30]} 33. Rb1 {[%emt 0:01:00]} b6 {[%emt 0:06:30]} 34. Ne5 {[%emt 0:00:29]} Rf2 {[%emt 0:01:30]} 35. Nc6+ {[%emt 0:02:07]} Kc8 {[%emt 0:01:30]} 36. Qa6+ {[%emt 0:01:09]} Kd7 {[%emt 0:00:00]} 37. Ne5+ {[%emt 0:00:28]} Kd6 {[%emt 0:02:00]} 38. Rxb6+ {[%emt 0:00:25]} Bxb6 {[%emt 0:00:30]} 39. Qxb6+ {[%emt 0:00:06]} Ke7 {[%emt 0:00:30]} 40. Nxg6+ {[%emt 0:00:50]} Kd7 {[%emt 0:01:30]} 41. Ne5+ {[%emt 0:00:41]} Ke8 {[%emt 0:01:30]} 42. Qe6+ {[%emt 0:01:00]} Kf8 {[%emt 0:00:00]} 43. Qh6+ {[%emt 0:00:20]} 1/2-1/2

[Event "Turkish Cup 2024"]
[Site "Denizli"]
[Date "2024.08.01"]
[Round "4"]
[White "Yardimci, Can"]
[Black "Arslan, Levent"]
[Result "1-0"]
[ECO "C56"]
[WhiteElo "1930"]
[BlackElo "1778"]
[Annotator "ChessBase"]
[PlyCount "105"]
[EventDate "2024.08.01"]
[EventType "swiss"]
[EventCountry "TUR"]
[SourceTitle "playchess.com"]
[Source "ChessBase"]
[SourceQuality "1"]
[TimeControl "5400+30"]

1. e4 {[%emt 0:01:00]} e5 {[%emt 0:02:00]} 2. Nf3 {[%emt 0:00:00]} Nc6 {[%emt 0:00:30]} 3. d4 {[%emt 0:00:00]} exd4 {[%emt 0:00:00]} 4. Bc4 {[%emt 0:00:00]} Nf6 {[%emt 0:00:00]} 5. e5 {[%emt 0:00:00]} d5 {[%emt 0:00:30]} 6. Bb5 {[%emt 0:00:30]} Ne4 {[%emt 0:00:30]} 7. Nxd4 {[%emt 0:00:30]} Bd7 {[%emt 0:00:00]} 8. Bxc6 {[%emt 0:00:30]} bxc6 {[%emt 0:00:00]} 9. O-O {[%emt 0:00:30]} Bc5 {[%emt 0:00:00]} 10. f3 {[%emt 0:00:00]} Ng5 {[%emt 0:00:00]} 11. f4 {[%emt 0:00:00]} Ne4 {[%emt 0:00:30]} 12. Be3 {[%emt 0:00:30]} Bb6 {[%emt 0:00:00]} 13. Nd2 {[%emt 0:00:30]} Nxd2 {[%emt 0:00:00]} 14. Qxd2 {[%emt 0:00:30]} c5 {[%emt 0:00:30]} 15. Nf3 {[%emt 0:00:30]} d4 {[%emt 0:00:30]} 16. Bf2 {[%emt 0:00:00]} Bc6 {[%emt 0:00:00]} 17. Bh4 {[%emt 0:00:00]} Qd5 {[%emt 0:00:00]} 18. f5 {[%emt 0:00:30]} Kd7 {[%emt 0:02:30]} 19. c4 {[%emt 0:00:00]} Qxc4 {[%emt 0:20:30]} 20. e6+ {[%emt 0:01:00]} Kc8 {[%emt 0:00:00]} 21. Ne5 {[%emt 0:00:00]} Qd5 {[%emt 0:00:00]} 22. Nxc6 {[%emt 0:01:00]} Qxc6 {[%emt 0:00:30]} 23. exf7 {[%emt 0:00:00]} Kb7 {[%emt 0:14:30]} 24. Be7 {[%emt 0:05:00]} Rhf8 {[%emt 0:03:30]} 25. Bxf8 {[%emt 0:01:30]} Rxf8 {[%emt 0:00:30]} 26. b3 {[%emt 0:28:30]} Rxf7 {[%emt 0:00:30]} 27. Qd3 {[%emt 0:02:30]} Ba5 {[%emt 0:07:30]} 28. Rac1 {[%emt 0:05:30]} Re7 {[%emt 0:05:30]} 29. Rf3 {[%emt 0:06:30]} Bb4 {[%emt 0:03:30]} 30. Rcf1 {[%emt 0:06:30]} Qa6 {[%emt 0:06:30]} 31. Qxa6+ {[%emt 0:05:30]} Kxa6 {[%emt 0:00:30]} 32. Kf2 {[%emt 0:01:30]} Kb5 {[%emt 0:05:30]} 33. a4+ {[%emt 0:02:30]} Kc6 {[%emt 0:01:30]} 34. g4 {[%emt 0:01:30]} Bd2 {[%emt 0:06:30]} 35. h4 {[%emt 0:07:30]} h6 {[%emt 0:02:30]} 36. f6 {[%emt 0:03:30]} gxf6 {[%emt 0:00:30]} 37. Rxf6+ {[%emt 0:00:30]} Kd5 {[%emt 0:05:50]} 38. Rd1 {[%emt 0:01:30]} Be3+ {[%emt 0:02:19]} 39. Kf3 {[%emt 0:00:30]} Re8 {[%emt 0:01:13]} 40. Rf5+ {[%emt 0:02:30]} Kd6 {[%emt 0:02:35]} 41. g5 {[%emt 0:05:19]} hxg5 {[%emt 0:00:30]} 42. hxg5 {[%emt 0:00:00]} Rb8 {[%emt 0:01:11]} 43. Rd3 {[%emt 0:01:43]} Rh8 {[%emt 0:03:36]} 44. Rd1 {[%emt 0:03:36]} Rh2 {[%emt 0:02:50]} 45. g6 {[%emt 0:02:11]} Rf2+ {[%emt 0:01:11]} 46. Ke4 {[%emt 0:00:19]} Rg2 {[%emt 0:00:25]} 47. Rf6+ {[%emt 0:00:44]} Ke7 {[%emt 0:03:32]} 48. Rdf1 {[%emt 0:04:12]} Rg4+ {[%emt 0:00:41]} 49. Kd5 {[%emt 0:01:07]} Bh6 {[%emt 0:00:54]} 50. Re6+ {[%emt 0:03:20]} Kd8 {[%emt 0:00:38]} 51. Rh1 {[%emt 0:01:24]} d3 {[%emt 0:00:24]} 52. Rxh6 {[%emt 0:00:51]} d2 {[%emt 0:00:28]} 53. Kc6 {[%emt 0:00:38]} 1-0